[Event "Titled Tuesday Blitz November 01 Early 2022"]
[White "Boruchovsky, Avital"]
[Black "Amgalantengis, Enkh-Amgalan"]
[WhiteFideId "2800055"]
[BlackFideId "4903536"]
[WhiteElo "2466"]
[BlackElo "1772"]
[Result "1-0"]
[Round "01"]
[TimeControl "180+1"]
[Date "2022.11.02"]
[WhiteClock "0:00:15"]
[BlackClock "0:00:59"]

1. c4 {[%clk 0:03:00]}  Nf6 {[%clk 0:02:59]} 2. Nc3 {[%clk 0:03:00]}  g6 {[%clk 0:02:59]} 3. e4 {[%clk 0:03:00]}  d6 {[%clk 0:02:57]} 4. d4 {[%clk 0:03:00]}  Bg7 {[%clk 0:02:57]} 5. g3 {[%clk 0:03:00]}  O-O {[%clk 0:02:58]} 6. Bg2 {[%clk 0:03:00]}  c5 {[%clk 0:02:59]} 7. Nge2 {[%clk 0:02:59]}  cxd4 {[%clk 0:02:57]} 8. Nxd4 {[%clk 0:03:00]}  Nc6 {[%clk 0:02:58]} 9. Nxc6 {[%clk 0:02:55]}  bxc6 {[%clk 0:02:58]} 10. O-O {[%clk 0:02:55]}  Rb8 {[%clk 0:02:56]} 11. Qc2 {[%clk 0:02:52]}  Nd7 {[%clk 0:02:56]} 12. b3 {[%clk 0:02:49]}  Qa5 {[%clk 0:02:54]} 13. Bd2 {[%clk 0:02:46]}  Nc5 {[%clk 0:02:52]} 14. Rad1 {[%clk 0:02:29]}  Ne6 {[%clk 0:02:51]} 15. h3 {[%clk 0:02:21]}  Nd4 {[%clk 0:02:50]} 16. Qd3 {[%clk 0:02:20]}  c5 {[%clk 0:02:50]} 17. Kh2 {[%clk 0:02:06]}  Bb7 {[%clk 0:02:45]} 18. Bg5 {[%clk 0:01:42]}  Rfe8 {[%clk 0:02:37]} 19. Rc1 {[%clk 0:01:26]}  Bc6 {[%clk 0:02:36]} 20. Rfe1 {[%clk 0:01:23]}  e5 {[%clk 0:02:34]} 21. Bd2 {[%clk 0:01:19]}  Qc7 {[%clk 0:02:32]} 22. Nd5 {[%clk 0:01:17]}  Bxd5 {[%clk 0:02:32]} 23. cxd5 {[%clk 0:01:18]}  Qb6 {[%clk 0:02:31]} 24. Rc4 {[%clk 0:01:15]}  Qa6 {[%clk 0:02:27]} 25. Qb1 {[%clk 0:00:40]}  Rb6 {[%clk 0:02:17]} 26. Qa1 {[%clk 0:00:31]}  Reb8 {[%clk 0:02:16]} 27. Be3 {[%clk 0:00:21]}  h5 {[%clk 0:02:10]} 28. Kh1 {[%clk 0:00:21]}  h4 {[%clk 0:02:09]} 29. g4 {[%clk 0:00:21]}  Bf6 {[%clk 0:02:08]} 30. Bf1 {[%clk 0:00:21]}  Qb7 {[%clk 0:02:08]} 31. Ra4 {[%clk 0:00:21]}  Nc2 {[%clk 0:02:07]} 32. Qc3 {[%clk 0:00:19]}  Nxe1 {[%clk 0:02:08]} 33. Qxe1 {[%clk 0:00:20]}  g5 {[%clk 0:02:08]} 34. Qd2 {[%clk 0:00:20]}  Qe7 {[%clk 0:02:07]} 35. Bc4 {[%clk 0:00:19]}  Kg7 {[%clk 0:02:07]} 36. Qe2 {[%clk 0:00:20]}  Kg6 {[%clk 0:02:07]} 37. Bd2 {[%clk 0:00:20]}  Qc7 {[%clk 0:02:05]} 38. Qf3 {[%clk 0:00:20]}  Qd7 {[%clk 0:02:05]} 39. Ba5 {[%clk 0:00:20]}  R6b7 {[%clk 0:02:05]} 40. Ba6 {[%clk 0:00:20]}  Kg7 {[%clk 0:02:01]} 41. Bxb7 {[%clk 0:00:19]}  Rxb7 {[%clk 0:02:02]} 42. Bd2 {[%clk 0:00:19]}  Qb5 {[%clk 0:02:01]} 43. Kg2 {[%clk 0:00:18]}  Qd7 {[%clk 0:01:54]} 44. Ra6 {[%clk 0:00:17]}  Be7 {[%clk 0:01:52]} 45. Qf5 {[%clk 0:00:17]}  Qxf5 {[%clk 0:01:52]} 46. gxf5 {[%clk 0:00:18]}  Kh6 {[%clk 0:01:49]} 47. Kf3 {[%clk 0:00:19]}  Kh5 {[%clk 0:01:49]} 48. Rc6 {[%clk 0:00:19]}  Bd8 {[%clk 0:01:36]} 49. Rxd6 {[%clk 0:00:18]}  Bb6 {[%clk 0:01:30]} 50. Rc6 {[%clk 0:00:16]}  a5 {[%clk 0:01:27]} 51. Rc8 {[%clk 0:00:16]}  Kh6 {[%clk 0:01:22]} 52. Kg4 {[%clk 0:00:16]}  f6 {[%clk 0:01:21]} 53. Rc6 {[%clk 0:00:16]}  Kg7 {[%clk 0:01:21]} 54. Be3 {[%clk 0:00:17]}  a4 {[%clk 0:01:10]} 55. bxa4 {[%clk 0:00:16]}  Bd8 {[%clk 0:01:04]} 56. Bxc5 {[%clk 0:00:15]}  Rb1 {[%clk 0:01:04]} 57. Rd6 {[%clk 0:00:15]}  Ba5 {[%clk 0:00:59]} 58. Rd7+ {[%clk 0:00:15]}  Kh6 {[%clk 0:00:59]} 59. Bf8# {[%clk 0:00:15]} 1-0


[Site "https://www.chess.com"]

[Event "Titled Tuesday Blitz November 01 Early 2022"]
[White "Brueckner, Thomas"]
[Black "Lewtak, Damian"]
[WhiteFideId "4600452"]
[BlackFideId "1141724"]
[WhiteElo "2332"]
[BlackElo "2329"]
[Result "1/2-1/2"]
[Round "01"]
[TimeControl "180+1"]
[Date "2022.11.02"]
[WhiteClock "0:00:58"]
[BlackClock "0:01:44"]

1. e4 {[%clk 0:02:59]}  c5 {[%clk 0:03:00]} 2. Nf3 {[%clk 0:02:58]}  Nc6 {[%clk 0:02:58]} 3. d4 {[%clk 0:02:58]}  cxd4 {[%clk 0:02:58]} 4. Nxd4 {[%clk 0:02:59]}  d5 {[%clk 0:02:58]} 5. exd5 {[%clk 0:02:50]}  Qxd5 {[%clk 0:02:57]} 6. Be3 {[%clk 0:02:46]}  Nxd4 {[%clk 0:02:50]} 7. Qxd4 {[%clk 0:02:43]}  Qxd4 {[%clk 0:02:49]} 8. Bxd4 {[%clk 0:02:44]}  e6 {[%clk 0:02:47]} 9. Nc3 {[%clk 0:02:43]}  a6 {[%clk 0:02:47]} 10. O-O-O {[%clk 0:02:40]}  Bd7 {[%clk 0:02:47]} 11. Bd3 {[%clk 0:02:27]}  Nf6 {[%clk 0:02:45]} 12. f3 {[%clk 0:02:20]}  Bd6 {[%clk 0:02:41]} 13. Kb1 {[%clk 0:02:16]}  Ke7 {[%clk 0:02:37]} 14. Ne4 {[%clk 0:02:13]}  Nxe4 {[%clk 0:02:19]} 15. Bxe4 {[%clk 0:02:14]}  Bc6 {[%clk 0:02:18]} 16. Bxc6 {[%clk 0:01:55]}  bxc6 {[%clk 0:02:19]} 17. Bxg7 {[%clk 0:01:44]}  Rhg8 {[%clk 0:02:18]} 18. Bf6+ {[%clk 0:01:42]}  Kxf6 {[%clk 0:02:18]} 19. Rxd6 {[%clk 0:01:42]}  Rxg2 {[%clk 0:02:18]} 20. Rxc6 {[%clk 0:01:39]}  Rag8 {[%clk 0:02:18]} 21. a4 {[%clk 0:01:34]}  Rg1+ {[%clk 0:02:13]} 22. Rxg1 {[%clk 0:01:34]}  Rxg1+ {[%clk 0:02:14]} 23. Ka2 {[%clk 0:01:33]}  Rf1 {[%clk 0:02:14]} 24. Rxa6 {[%clk 0:01:30]}  Rxf3 {[%clk 0:02:14]} 25. Rb6 {[%clk 0:01:26]}  Rf5 {[%clk 0:02:02]} 26. b4 {[%clk 0:01:24]}  Ke5 {[%clk 0:01:58]} 27. a5 {[%clk 0:01:21]}  Rf2 {[%clk 0:01:51]} 28. Kb3 {[%clk 0:01:19]}  Rd2 {[%clk 0:01:47]} 29. a6 {[%clk 0:01:17]}  Rd8 {[%clk 0:01:47]} 30. a7 {[%clk 0:01:14]}  Ra8 {[%clk 0:01:48]} 31. Rb7 {[%clk 0:01:14]}  f5 {[%clk 0:01:47]} 32. b5 {[%clk 0:01:14]}  f4 {[%clk 0:01:47]} 33. b6 {[%clk 0:01:14]}  f3 {[%clk 0:01:48]} 34. Rb8 {[%clk 0:01:13]}  f2 {[%clk 0:01:48]} 35. Rxa8 {[%clk 0:01:02]}  f1=Q {[%clk 0:01:48]} 36. Rb8 {[%clk 0:01:02]}  Qb5+ {[%clk 0:01:46]} 37. Kc3 {[%clk 0:00:59]}  Qc5+ {[%clk 0:01:44]} 38. Kb3 {[%clk 0:00:58]}  Qb5+ {[%clk 0:01:44]} 39. Kc3 {[%clk 0:00:58]}  Qc5+ {[%clk 0:01:44]} 40. Kb3 {[%clk 0:00:58]}  Qb5+ {[%clk 0:01:44]} 1/2-1/2


[Site "https://www.chess.com"]

[Event "Titled Tuesday Blitz November 01 Early 2022"]
[White "Budrewicz, Krzysztof"]
[Black "Sovetbekova, Nurai"]
[WhiteFideId "1127950"]
[BlackFideId "13801910"]
[WhiteElo "2171"]
[BlackElo "1925"]
[Result "1-0"]
[Round "01"]
[TimeControl "180+1"]
[Date "2022.11.02"]
[WhiteClock "0:00:16"]
[BlackClock "0:00:04"]

1. d4 {[%clk 0:03:00]}  Nf6 {[%clk 0:02:59]} 2. Bg5 {[%clk 0:02:49]}  g6 {[%clk 0:02:58]} 3. Bxf6 {[%clk 0:02:42]}  exf6 {[%clk 0:02:59]} 4. e3 {[%clk 0:02:43]}  d5 {[%clk 0:02:47]} 5. Ne2 {[%clk 0:02:41]}  Bg7 {[%clk 0:02:46]} 6. Nf4 {[%clk 0:02:41]}  O-O {[%clk 0:02:42]} 7. h4 {[%clk 0:02:40]}  h5 {[%clk 0:02:35]} 8. c4 {[%clk 0:02:38]}  c6 {[%clk 0:02:29]} 9. cxd5 {[%clk 0:02:25]}  cxd5 {[%clk 0:02:30]} 10. Nc3 {[%clk 0:02:25]}  Be6 {[%clk 0:02:16]} 11. Bd3 {[%clk 0:02:21]}  f5 {[%clk 0:02:05]} 12. Qf3 {[%clk 0:02:14]}  Nc6 {[%clk 0:01:44]} 13. Nfxd5 {[%clk 0:02:05]}  Qa5 {[%clk 0:01:31]} 14. O-O {[%clk 0:02:01]}  Rad8 {[%clk 0:01:29]} 15. Nf4 {[%clk 0:01:59]}  Bd7 {[%clk 0:01:18]} 16. Bc4 {[%clk 0:01:56]}  Qb4 {[%clk 0:01:13]} 17. Bb3 {[%clk 0:01:50]}  Kh7 {[%clk 0:01:09]} 18. Ncd5 {[%clk 0:01:46]}  Qd6 {[%clk 0:01:06]} 19. Rac1 {[%clk 0:01:34]}  Na5 {[%clk 0:01:03]} 20. Nc3 {[%clk 0:01:17]}  Nxb3 {[%clk 0:00:56]} 21. axb3 {[%clk 0:01:17]}  Bc6 {[%clk 0:00:56]} 22. Qg3 {[%clk 0:01:17]}  Qb4 {[%clk 0:00:50]} 23. d5 {[%clk 0:01:01]}  Bb5 {[%clk 0:00:42]} 24. Nxb5 {[%clk 0:00:58]}  Qxb5 {[%clk 0:00:42]} 25. Rc7 {[%clk 0:00:57]}  Qxb3 {[%clk 0:00:38]} 26. Qg5 {[%clk 0:00:34]}  Qb6 {[%clk 0:00:18]} 27. Rfc1 {[%clk 0:00:33]}  Be5 {[%clk 0:00:18]} 28. Qxg6+ {[%clk 0:00:33]}  Qxg6 {[%clk 0:00:16]} 29. Nxg6 {[%clk 0:00:32]}  Kxg6 {[%clk 0:00:17]} 30. Rxb7 {[%clk 0:00:30]}  Rb8 {[%clk 0:00:15]} 31. Rxa7 {[%clk 0:00:26]}  Rxb2 {[%clk 0:00:15]} 32. Ra6+ {[%clk 0:00:26]}  Kg7 {[%clk 0:00:15]} 33. g3 {[%clk 0:00:26]}  Rfb8 {[%clk 0:00:14]} 34. Ra7 {[%clk 0:00:25]}  Rb1 {[%clk 0:00:13]} 35. Rxb1 {[%clk 0:00:24]}  Rxb1+ {[%clk 0:00:14]} 36. Kg2 {[%clk 0:00:25]}  Rd1 {[%clk 0:00:14]} 37. Rd7 {[%clk 0:00:25]}  Kf6 {[%clk 0:00:13]} 38. Kf3 {[%clk 0:00:26]}  Bc3 {[%clk 0:00:12]} 39. Ke2 {[%clk 0:00:25]}  Rd2+ {[%clk 0:00:11]} 40. Kf3 {[%clk 0:00:26]}  Bb4 {[%clk 0:00:11]} 41. Rb7 {[%clk 0:00:25]}  Bd6 {[%clk 0:00:10]} 42. Rb5 {[%clk 0:00:24]}  Ke5 {[%clk 0:00:10]} 43. Rb7 {[%clk 0:00:24]}  Rxd5 {[%clk 0:00:08]} 44. Rxf7 {[%clk 0:00:24]}  Ke6 {[%clk 0:00:09]} 45. Rh7 {[%clk 0:00:24]}  Kf6 {[%clk 0:00:09]} 46. Rxh5 {[%clk 0:00:23]}  Kg7 {[%clk 0:00:09]} 47. Rg5+ {[%clk 0:00:23]}  Kf7 {[%clk 0:00:09]} 48. h5 {[%clk 0:00:22]}  Be7 {[%clk 0:00:09]} 49. Rg6 {[%clk 0:00:23]}  f4 {[%clk 0:00:09]} 50. Kxf4 {[%clk 0:00:20]}  Rxh5 {[%clk 0:00:08]} 51. Rc6 {[%clk 0:00:20]}  Rb5 {[%clk 0:00:07]} 52. e4 {[%clk 0:00:20]}  Rb4 {[%clk 0:00:07]} 53. f3 {[%clk 0:00:20]}  Rb3 {[%clk 0:00:08]} 54. g4 {[%clk 0:00:20]}  Bf6 {[%clk 0:00:08]} 55. g5 {[%clk 0:00:20]}  Be7 {[%clk 0:00:07]} 56. g6+ {[%clk 0:00:20]}  Kf8 {[%clk 0:00:06]} 57. Kg4 {[%clk 0:00:20]}  Rb4 {[%clk 0:00:06]} 58. Kf5 {[%clk 0:00:20]}  Rb3 {[%clk 0:00:04]} 59. f4 {[%clk 0:00:20]}  Rh3 {[%clk 0:00:02]} 60. e5 {[%clk 0:00:19]}  Rh5+ {[%clk 0:00:03]} 61. Ke6 {[%clk 0:00:20]}  Rh6 {[%clk 0:00:03]} 62. f5 {[%clk 0:00:20]}  Rh1 {[%clk 0:00:02]} 63. Rc8+ {[%clk 0:00:18]}  Kg7 {[%clk 0:00:03]} 64. Kxe7 {[%clk 0:00:18]}  Ra1 {[%clk 0:00:04]} 65. f6+ {[%clk 0:00:18]}  Kxg6 {[%clk 0:00:04]} 66. Rg8+ {[%clk 0:00:18]}  Kf5 {[%clk 0:00:04]} 67. f7 {[%clk 0:00:17]}  Ra7+ {[%clk 0:00:05]} 68. Ke8 {[%clk 0:00:16]}  Ke6 {[%clk 0:00:04]} 69. Rg6+ {[%clk 0:00:16]}  Kxe5 {[%clk 0:00:04]} 70. f8=Q {[%clk 0:00:15]}  Ra8+ {[%clk 0:00:04]} 71. Kf7 {[%clk 0:00:15]}  Ra7+ {[%clk 0:00:04]} 72. Kg8 {[%clk 0:00:16]} 1-0


[Site "https://www.chess.com"]

[Event "Titled Tuesday Blitz November 01 Early 2022"]
[White "Buscar, Michael"]
[Black "Movahed, Sina"]
[WhiteFideId "2603616"]
[BlackFideId "42520835"]
[WhiteElo "2010"]
[BlackElo "2225"]
[Result "1-0"]
[Round "01"]
[TimeControl "180+1"]
[Date "2022.11.02"]
[WhiteClock "0:00:36"]
[BlackClock "0:00:17"]

1. d4 {[%clk 0:02:59]}  Nf6 {[%clk 0:02:58]} 2. c4 {[%clk 0:02:59]}  g6 {[%clk 0:02:57]} 3. Nc3 {[%clk 0:02:56]}  Bg7 {[%clk 0:02:30]} 4. e4 {[%clk 0:02:55]}  d6 {[%clk 0:02:30]} 5. Nf3 {[%clk 0:02:54]}  O-O {[%clk 0:02:30]} 6. Be2 {[%clk 0:02:51]}  e5 {[%clk 0:02:29]} 7. Be3 {[%clk 0:02:50]}  exd4 {[%clk 0:02:29]} 8. Nxd4 {[%clk 0:02:49]}  Re8 {[%clk 0:02:30]} 9. O-O {[%clk 0:02:47]}  Nxe4 {[%clk 0:02:28]} 10. Nxe4 {[%clk 0:02:46]}  Rxe4 {[%clk 0:02:29]} 11. Bf3 {[%clk 0:02:42]}  Re8 {[%clk 0:02:28]} 12. Qb3 {[%clk 0:02:38]}  c6 {[%clk 0:02:27]} 13. Rad1 {[%clk 0:02:37]}  Qc7 {[%clk 0:02:07]} 14. Rd2 {[%clk 0:02:32]}  Na6 {[%clk 0:02:07]} 15. Rfd1 {[%clk 0:02:29]}  Nc5 {[%clk 0:02:02]} 16. Qc2 {[%clk 0:02:29]}  a5 {[%clk 0:01:57]} 17. Nb3 {[%clk 0:02:05]}  Bf5 {[%clk 0:01:53]} 18. Qc1 {[%clk 0:02:04]}  Nxb3 {[%clk 0:01:31]} 19. axb3 {[%clk 0:02:04]}  Be5 {[%clk 0:01:31]} 20. g3 {[%clk 0:01:53]}  a4 {[%clk 0:01:30]} 21. bxa4 {[%clk 0:01:37]}  Rxa4 {[%clk 0:01:31]} 22. Bd4 {[%clk 0:01:37]}  Qa5 {[%clk 0:01:24]} 23. b3 {[%clk 0:01:21]}  Ra3 {[%clk 0:01:19]} 24. Qb2 {[%clk 0:01:17]}  Qb4 {[%clk 0:01:13]} 25. Bxe5 {[%clk 0:01:14]}  Rxb3 {[%clk 0:01:05]} 26. Bxd6 {[%clk 0:01:07]}  Rxb2 {[%clk 0:01:04]} 27. Bxb4 {[%clk 0:01:07]}  Rxb4 {[%clk 0:01:05]} 28. Rd8 {[%clk 0:01:01]}  Rxd8 {[%clk 0:01:05]} 29. Rxd8+ {[%clk 0:01:00]}  Kg7 {[%clk 0:01:05]} 30. g4 {[%clk 0:00:51]}  Be6 {[%clk 0:00:32]} 31. c5 {[%clk 0:00:51]}  Bxg4 {[%clk 0:00:32]} 32. Kg2 {[%clk 0:00:45]}  Bxf3+ {[%clk 0:00:27]} 33. Kxf3 {[%clk 0:00:45]}  Rb5 {[%clk 0:00:28]} 34. Rb8 {[%clk 0:00:45]}  Rxc5 {[%clk 0:00:29]} 35. Rxb7 {[%clk 0:00:45]}  Rf5+ {[%clk 0:00:17]} 36. Ke3 {[%clk 0:00:39]}  c5 {[%clk 0:00:18]} 37. Rc7 {[%clk 0:00:39]}  h5 {[%clk 0:00:18]} 38. Rc6 {[%clk 0:00:37]}  h4 {[%clk 0:00:17]} 39. h3 {[%clk 0:00:36]} 1-0


[Site "https://www.chess.com"]

[Event "Titled Tuesday Blitz November 01 Early 2022"]
[White "Celestino, Rafael Teixeira"]
[Black "Gokerkan, Cem Kaan"]
[WhiteFideId "2108925"]
[BlackFideId "6336760"]
[WhiteElo "2448"]
[BlackElo "2365"]
[Result "0-1"]
[Round "01"]
[TimeControl "180+1"]
[Date "2022.11.02"]
[WhiteClock "0:02:10"]
[BlackClock "0:02:10"]

1. e4 {[%clk 0:03:00]}  Nf6 {[%clk 0:02:59]} 2. Nc3 {[%clk 0:02:57]}  e5 {[%clk 0:02:58]} 3. d3 {[%clk 0:02:46]}  Nc6 {[%clk 0:02:58]} 4. f4 {[%clk 0:02:47]}  Bb4 {[%clk 0:02:47]} 5. Ne2 {[%clk 0:02:34]}  d5 {[%clk 0:02:34]} 6. exd5 {[%clk 0:02:35]}  Nxd5 {[%clk 0:02:34]} 7. Bd2 {[%clk 0:02:30]}  Bxc3 {[%clk 0:02:23]} 8. bxc3 {[%clk 0:02:31]}  O-O {[%clk 0:02:23]} 9. c4 {[%clk 0:02:27]}  Nxf4 {[%clk 0:02:22]} 10. Nxf4 {[%clk 0:02:25]}  exf4 {[%clk 0:02:22]} 11. Be2 {[%clk 0:02:26]}  Qh4+ {[%clk 0:02:18]} 12. g3 {[%clk 0:02:19]}  fxg3 {[%clk 0:02:10]} 13. Kf1 {[%clk 0:02:10]}  Bh3+ {[%clk 0:02:10]} 14. Kg1 {[%clk 0:02:10]}  Qd4+ {[%clk 0:02:10]} 0-1


[Site "https://www.chess.com"]

[Event "Titled Tuesday Blitz November 01 Early 2022"]
[White "Chernobay, Artem"]
[Black "Vifleemskaia, Svetlana"]
[WhiteFideId "4167406"]
[BlackFideId "4129490"]
[WhiteElo "2473"]
[BlackElo "1929"]
[Result "1-0"]
[Round "01"]
[TimeControl "180+1"]
[Date "2022.11.02"]
[WhiteClock "0:00:47"]
[BlackClock "0:00:37"]

1. e4 {[%clk 0:02:59]}  e5 {[%clk 0:02:57]} 2. Nc3 {[%clk 0:02:58]}  Nf6 {[%clk 0:02:56]} 3. g3 {[%clk 0:02:58]}  Nc6 {[%clk 0:02:51]} 4. Bg2 {[%clk 0:02:58]}  Bc5 {[%clk 0:02:50]} 5. Nge2 {[%clk 0:02:58]}  d6 {[%clk 0:02:49]} 6. h3 {[%clk 0:02:53]}  a6 {[%clk 0:02:49]} 7. d3 {[%clk 0:02:52]}  O-O {[%clk 0:02:49]} 8. O-O {[%clk 0:02:52]}  h6 {[%clk 0:02:38]} 9. Kh2 {[%clk 0:02:51]}  Nh7 {[%clk 0:02:33]} 10. f4 {[%clk 0:02:50]}  f5 {[%clk 0:02:30]} 11. fxe5 {[%clk 0:02:37]}  dxe5 {[%clk 0:02:27]} 12. exf5 {[%clk 0:02:37]}  Bxf5 {[%clk 0:02:24]} 13. Ne4 {[%clk 0:02:35]}  Be7 {[%clk 0:02:22]} 14. Be3 {[%clk 0:02:28]}  Nd4 {[%clk 0:02:17]} 15. c3 {[%clk 0:02:23]}  Nc6 {[%clk 0:02:12]} 16. Nc5 {[%clk 0:01:55]}  Qc8 {[%clk 0:02:01]} 17. Qb3+ {[%clk 0:01:29]}  Kh8 {[%clk 0:01:58]} 18. Qxb7 {[%clk 0:01:30]}  Qxb7 {[%clk 0:01:54]} 19. Nxb7 {[%clk 0:01:31]}  Nd8 {[%clk 0:01:49]} 20. Nc5 {[%clk 0:01:26]}  Rb8 {[%clk 0:01:46]} 21. b3 {[%clk 0:01:24]}  a5 {[%clk 0:01:45]} 22. g4 {[%clk 0:01:21]}  Bg6 {[%clk 0:01:37]} 23. Ng3 {[%clk 0:01:16]}  Bxc5 {[%clk 0:01:22]} 24. Bxc5 {[%clk 0:01:14]}  Re8 {[%clk 0:01:23]} 25. Nf5 {[%clk 0:01:12]}  Ne6 {[%clk 0:01:20]} 26. Be3 {[%clk 0:01:06]}  Rbd8 {[%clk 0:01:13]} 27. Rad1 {[%clk 0:01:06]}  a4 {[%clk 0:01:04]} 28. Bc6 {[%clk 0:01:04]}  Rf8 {[%clk 0:00:59]} 29. Bxa4 {[%clk 0:01:03]}  Bxf5 {[%clk 0:00:59]} 30. Rxf5 {[%clk 0:01:02]}  Rxf5 {[%clk 0:00:57]} 31. gxf5 {[%clk 0:01:03]}  Neg5 {[%clk 0:00:52]} 32. Bc6 {[%clk 0:01:00]}  Nf6 {[%clk 0:00:50]} 33. a4 {[%clk 0:00:56]}  e4 {[%clk 0:00:50]} 34. d4 {[%clk 0:00:53]}  Nf3+ {[%clk 0:00:49]} 35. Kg2 {[%clk 0:00:52]}  Ne5 {[%clk 0:00:49]} 36. dxe5 {[%clk 0:00:49]}  Rxd1 {[%clk 0:00:49]} 37. exf6 {[%clk 0:00:49]}  gxf6 {[%clk 0:00:48]} 38. a5 {[%clk 0:00:48]}  Rb1 {[%clk 0:00:37]} 39. a6 {[%clk 0:00:47]} 1-0


[Site "https://www.chess.com"]

[Event "Titled Tuesday Blitz November 01 Early 2022"]
[White "Chong, Kai Ni Agnes"]
[Black "Sharapov, Evgeny"]
[WhiteFideId "5722071"]
[BlackFideId "14103133"]
[WhiteElo "1762"]
[BlackElo "2367"]
[Result "0-1"]
[Round "01"]
[TimeControl "180+1"]
[Date "2022.11.02"]
[WhiteClock "0:00:02"]
[BlackClock "0:00:32"]

1. d4 {[%clk 0:03:00]}  d5 {[%clk 0:02:59]} 2. c4 {[%clk 0:02:59]}  c6 {[%clk 0:02:59]} 3. cxd5 {[%clk 0:02:57]}  cxd5 {[%clk 0:02:59]} 4. Nc3 {[%clk 0:02:57]}  Nf6 {[%clk 0:02:59]} 5. Bf4 {[%clk 0:02:56]}  Nc6 {[%clk 0:02:59]} 6. e3 {[%clk 0:02:55]}  a6 {[%clk 0:02:59]} 7. Bd3 {[%clk 0:02:51]}  g6 {[%clk 0:02:56]} 8. Nge2 {[%clk 0:02:38]}  Bg7 {[%clk 0:02:55]} 9. O-O {[%clk 0:02:37]}  O-O {[%clk 0:02:55]} 10. Rc1 {[%clk 0:02:35]}  Bf5 {[%clk 0:02:54]} 11. h3 {[%clk 0:02:18]}  Bxd3 {[%clk 0:02:54]} 12. Qxd3 {[%clk 0:02:17]}  Rc8 {[%clk 0:02:53]} 13. Na4 {[%clk 0:01:42]}  Nd7 {[%clk 0:02:52]} 14. Nc5 {[%clk 0:01:32]}  Nxc5 {[%clk 0:02:52]} 15. Rxc5 {[%clk 0:01:31]}  Nb4 {[%clk 0:02:37]} 16. Qb3 {[%clk 0:01:13]}  Rxc5 {[%clk 0:02:36]} 17. dxc5 {[%clk 0:01:14]}  Qa5 {[%clk 0:02:03]} 18. a3 {[%clk 0:01:06]}  Nc6 {[%clk 0:02:00]} 19. Qxb7 {[%clk 0:00:59]}  Qb5 {[%clk 0:01:52]} 20. Qxb5 {[%clk 0:00:47]}  axb5 {[%clk 0:01:52]} 21. Rd1 {[%clk 0:00:45]}  Bxb2 {[%clk 0:01:48]} 22. Rd3 {[%clk 0:00:28]}  Ra8 {[%clk 0:01:39]} 23. Rb3 {[%clk 0:00:27]}  Bxa3 {[%clk 0:01:36]} 24. Rxb5 {[%clk 0:00:26]}  f6 {[%clk 0:01:24]} 25. Bc7 {[%clk 0:00:18]}  e5 {[%clk 0:01:12]} 26. Nc3 {[%clk 0:00:15]}  d4 {[%clk 0:01:09]} 27. Nd5 {[%clk 0:00:15]}  d3 {[%clk 0:00:59]} 28. Rb3 {[%clk 0:00:11]}  d2 {[%clk 0:00:55]} 29. Rd3 {[%clk 0:00:08]}  Bc1 {[%clk 0:00:47]} 30. Nxf6+ {[%clk 0:00:06]}  Kf7 {[%clk 0:00:47]} 31. Ne4 {[%clk 0:00:06]}  Ra2 {[%clk 0:00:40]} 32. Nc3 {[%clk 0:00:05]}  Rc2 {[%clk 0:00:33]} 33. Bd6 {[%clk 0:00:02]}  Rxc3 {[%clk 0:00:32]} 0-1


[Site "https://www.chess.com"]

[Event "Titled Tuesday Blitz November 01 Early 2022"]
[White "Costachi, Mihnea"]
[Black "Perez Rodriguez, Jennifer"]
[WhiteFideId "1217518"]
[BlackFideId "3507831"]
[WhiteElo "2437"]
[BlackElo "2170"]
[Result "0-1"]
[Round "01"]
[TimeControl "180+1"]
[Date "2022.11.02"]
[WhiteClock "0:00:34"]
[BlackClock "0:00:39"]

1. d4 {[%clk 0:02:14]}  d5 {[%clk 0:02:58]} 2. Nc3 {[%clk 0:02:13]}  Bf5 {[%clk 0:02:53]} 3. Bf4 {[%clk 0:02:13]}  a6 {[%clk 0:02:50]} 4. f3 {[%clk 0:02:12]}  Bg6 {[%clk 0:02:46]} 5. e4 {[%clk 0:02:10]}  e6 {[%clk 0:02:43]} 6. Qd2 {[%clk 0:02:08]}  Bb4 {[%clk 0:02:41]} 7. a3 {[%clk 0:02:00]}  Ba5 {[%clk 0:02:40]} 8. Nh3 {[%clk 0:01:57]}  dxe4 {[%clk 0:02:38]} 9. fxe4 {[%clk 0:01:56]}  Nc6 {[%clk 0:02:29]} 10. d5 {[%clk 0:01:51]}  exd5 {[%clk 0:02:20]} 11. exd5 {[%clk 0:01:51]}  Qe7+ {[%clk 0:02:08]} 12. Be2 {[%clk 0:01:47]}  O-O-O {[%clk 0:01:47]} 13. O-O-O {[%clk 0:01:47]}  Nf6 {[%clk 0:01:37]} 14. Bf3 {[%clk 0:01:43]}  Ne5 {[%clk 0:01:23]} 15. Rhe1 {[%clk 0:01:43]}  Nxf3 {[%clk 0:01:15]} 16. gxf3 {[%clk 0:01:44]}  Qd7 {[%clk 0:01:12]} 17. Ng5 {[%clk 0:01:38]}  h6 {[%clk 0:01:10]} 18. Nge4 {[%clk 0:01:37]}  Nxd5 {[%clk 0:00:53]} 19. Nd6+ {[%clk 0:01:05]}  cxd6 {[%clk 0:00:49]} 20. Qxd5 {[%clk 0:01:05]}  Bxc3 {[%clk 0:00:48]} 21. bxc3 {[%clk 0:01:06]}  Qf5 {[%clk 0:00:46]} 22. Qxf5+ {[%clk 0:01:03]}  Bxf5 {[%clk 0:00:47]} 23. Bxd6 {[%clk 0:00:58]}  Rd7 {[%clk 0:00:48]} 24. c4 {[%clk 0:00:57]}  Rhd8 {[%clk 0:00:48]} 25. c5 {[%clk 0:00:54]}  b6 {[%clk 0:00:48]} 26. Re5 {[%clk 0:00:47]}  Bg6 {[%clk 0:00:44]} 27. Rde1 {[%clk 0:00:40]}  bxc5 {[%clk 0:00:41]} 28. Rxc5+ {[%clk 0:00:39]}  Kb7 {[%clk 0:00:41]} 29. Bf4 {[%clk 0:00:38]}  Rc8 {[%clk 0:00:40]} 30. Rxc8 {[%clk 0:00:35]}  Kxc8 {[%clk 0:00:41]} 31. Re8+ {[%clk 0:00:35]}  Kb7 {[%clk 0:00:41]} 32. Be5 {[%clk 0:00:33]}  f6 {[%clk 0:00:39]} 33. Bc3 {[%clk 0:00:34]}  Bxe8 {[%clk 0:00:39]} 0-1


[Site "https://www.chess.com"]

[Event "Titled Tuesday Blitz November 01 Early 2022"]
[White "Dimitrov, Atanas"]
[Black "Shubenkova, Veronika"]
[WhiteFideId "2901315"]
[BlackFideId "44124040"]
[WhiteElo "2814"]
[BlackElo "2027"]
[Result "0-1"]
[Round "01"]
[TimeControl "180+1"]
[Date "2022.11.02"]
[WhiteClock "0:02:19"]
[BlackClock "0:02:51"]

1. e4 {[%clk 0:03:00]}  c6 {[%clk 0:02:59]} 2. d4 {[%clk 0:02:56]}  d5 {[%clk 0:02:58]} 3. Nd2 {[%clk 0:02:57]}  dxe4 {[%clk 0:02:58]} 4. Nxe4 {[%clk 0:02:58]}  Bf5 {[%clk 0:02:58]} 5. Ng3 {[%clk 0:02:57]}  Bg6 {[%clk 0:02:58]} 6. Nf3 {[%clk 0:02:58]}  Nd7 {[%clk 0:02:58]} 7. h4 {[%clk 0:02:56]}  h6 {[%clk 0:02:58]} 8. h5 {[%clk 0:02:57]}  Bh7 {[%clk 0:02:58]} 9. Bd3 {[%clk 0:02:58]}  Bxd3 {[%clk 0:02:58]} 10. Qxd3 {[%clk 0:02:59]}  e6 {[%clk 0:02:58]} 11. Bf4 {[%clk 0:02:57]}  Ngf6 {[%clk 0:02:58]} 12. O-O-O {[%clk 0:02:56]}  Be7 {[%clk 0:02:58]} 13. Kb1 {[%clk 0:02:56]}  Qa5 {[%clk 0:02:57]} 14. Bd2 {[%clk 0:02:50]}  Bb4 {[%clk 0:02:57]} 15. Bxb4 {[%clk 0:02:47]}  Qxb4 {[%clk 0:02:57]} 16. Rhe1 {[%clk 0:02:47]}  O-O-O {[%clk 0:02:56]} 17. c3 {[%clk 0:02:28]}  Qb6 {[%clk 0:02:55]} 18. Qe2 {[%clk 0:02:23]}  Nd5 {[%clk 0:02:52]} 19. Ne5 {[%clk 0:02:19]}  Nxc3+ {[%clk 0:02:51]} 0-1


[Site "https://www.chess.com"]